fUST/lending_fUST_20250929
["ID","MTS","AMOUNT","RATE_DAILY","PERIOD"]
[388392889,1759151456477,-480.0,0.00025843,2]
[388392890,1759151456487,-7531.81,0.00025843,2]
[388392891,1759151456497,-909.16,0.00025843,2]
[388392892,1759151456508,-844.28,0.00025843,2]
[388392893,1759151456519,-890.13,0.00025843,2]
[388392894,1759151456529,-480.0,0.00025843,2]
[388392895,1759151456539,-1044.77,0.00025843,2]
[388392896,1759151456549,-248.92935738,0.00025843,2]
[388392897,1759151456558,-677.82,0.00025843,2]
[388392898,1759151456567,-1117.33,0.00025843,2]
[388392899,1759151456577,-3496.53,0.00025843,2]
[388392900,1759151456586,-480.0,0.00025843,2]
[388392901,1759151456596,-973.3,0.00025843,2]
[388392902,1759151456606,-546.0,0.00025843,2]
[388392903,1759151456615,-480.0,0.00025843,2]
[388392904,1759151456625,-604.50982546,0.00025843,2]
[388392905,1759151456635,-572.94,0.00025843,2]
[388392906,1759151456644,-1801.63,0.00025843,2]
[388392907,1759151456655,-480.0,0.00025843,2]
[388392908,1759151456665,-977.69,0.00025843,2]
[388392909,1759151456674,-480.0,0.00025843,2]
[388392910,1759151456684,-480.0,0.00025843,2]
[388392911,1759151456694,-1049.32,0.00025843,2]
[388392912,1759151456703,-480.0,0.00025843,2]
[388392913,1759151456712,-480.0,0.00025843,2]
[388392914,1759151456722,-805.75,0.00025843,2]
[388392915,1759151456732,-480.0,0.00025843,2]
[388392916,1759151456741,-480.0,0.00025843,2]
[388392917,1759151456751,-7854.75,0.00025843,2]
[388392918,1759151456760,-480.0,0.00025843,2]
[388392919,1759151456770,-669.95,0.00025843,2]
[388392920,1759151456779,-1494.42,0.00025843,2]
[388392921,1759151456788,-200.0,0.00025843,2]
[388392922,1759151456798,-480.0,0.00025843,2]
[388392923,1759151456807,-480.0,0.00025843,2]
[388392924,1759151456816,-545.1,0.00025843,2]
[388392925,1759151456826,-480.0,0.00025843,2]
[388392926,1759151456836,-4139.78,0.00025843,2]
[388392927,1759151456846,-480.0,0.00025843,2]
[388392928,1759151456855,-717.97,0.00025843,2]
[388392929,1759151456866,-480.0,0.00025843,2]
[388392930,1759151456875,-480.0,0.00025843,2]
[388392931,1759151456885,-500.0,0.00025844,5]
[388392932,1759151456894,-151.0,0.000259,11]
[388392933,1759151456904,-151.0,0.00025931,7]
[388392934,1759151456914,-151.0,0.00025931,7]
[388392935,1759151456923,-151.0,0.00025931,7]
[388392936,1759151456933,-151.0,0.00025931,7]
[388392937,1759151456942,-156.097234,0.00025931,7]
[388392938,1759151456952,-151.0,0.00025931,7]
[388392939,1759151456961,-159.004346,0.00025931,7]
[388392940,1759151456971,-159.004346,0.00025931,7]
[388392941,1759151456981,-151.0,0.00025931,7]
[388392942,1759151456990,-159.004346,0.00025931,7]
[388392943,1759151457000,-151.0,0.00025931,7]
[388392944,1759151457010,-151.0,0.00025931,7]
[388392945,1759151457019,-159.004346,0.00025931,7]
[388392946,1759151457030,-151.0,0.00025931,7]
[388392947,1759151457040,-151.0,0.00025931,7]
[388392948,1759151457050,-151.0,0.00025931,7]
[388392949,1759151457059,-151.0,0.00025931,7]
[388392950,1759151457069,-151.0,0.00025931,7]
[388392951,1759151457079,-151.0,0.00025931,7]
[388392952,1759151457088,-709.345783,0.00025931,7]
[388392953,1759151457098,-574.427386,0.00025931,7]
[388392954,1759151457108,-709.345783,0.00025931,7]
[388392955,1759151457118,-574.427386,0.00025931,7]
[388392956,1759151457128,-709.345783,0.00025931,7]
[388392957,1759151457142,-574.427386,0.00025931,7]
[388392958,1759151457152,-709.345783,0.00025931,7]
[388392959,1759151457162,-574.427386,0.00025931,7]
[388392960,1759151457173,-562.293179,0.00025932,7]
[388392961,1759151457183,-562.293179,0.00025932,7]
[388392962,1759151457193,-562.293179,0.00025932,7]
[388392963,1759151457203,-562.293179,0.00025932,7]
[388392964,1759151457214,-153.313215,0.00025932,7]
[388392965,1759151457224,-151.0,0.00025932,7]
[388392966,1759151457233,-151.0,0.00025932,7]
[388392967,1759151457243,-151.0,0.00025932,7]
[388392968,1759151457252,-480.0,0.00025941,2]
[388392969,1759151457262,-480.0,0.00025941,2]
[388392970,1759151457272,-480.0,0.00025941,2]
[388392971,1759151457282,-773.39,0.00025941,2]
[388392972,1759151457291,-480.0,0.00025941,2]
[388392973,1759151457301,-481.09384653,0.00025941,2]
[388392974,1759151457311,-480.0,0.00025941,2]
[388392975,1759151457326,-480.0,0.00025941,2]
[388392976,1759151457336,-480.0,0.00025941,2]
[388392977,1759151457346,-789.49,0.00025941,2]
[388392978,1759151457356,-579.82,0.00025941,2]
[388392979,1759151457366,-480.0,0.00025941,2]
[388392980,1759151457376,-480.0,0.00025941,2]
[388392981,1759151457386,-480.0,0.00025941,2]
[388392982,1759151457396,-622.65,0.00025941,2]
[388392983,1759151457406,-480.0,0.00025941,2]
[388392984,1759151457416,-682.22,0.00025941,2]
[388392985,1759151457426,-480.0,0.00025941,2]
[388392986,1759151457436,-481.57174167,0.00025941,2]
[388392987,1759151457445,-731.15,0.00025941,2]
[388392988,1759151457455,-480.0,0.00025941,2]
[388392989,1759151457469,-480.0,0.00025941,2]
[388392990,1759151457479,-480.0,0.00025941,2]
[388392991,1759151457490,-480.0,0.00025941,2]
[388392992,1759151457499,-151.0,0.00025941,7]
[388392993,1759151457508,-151.0,0.00025941,7]
[388392994,1759151457519,-151.0,0.00025941,7]
[388392995,1759151457530,-246.750033,0.00025941,7]
[388392996,1759151457540,-151.0,0.00025941,7]
[388392997,1759151457550,-151.0,0.00025941,7]
[388392998,1759151457562,-153.200272,0.00025941,7]
[388392999,1759151457574,-151.0,0.00025941,7]
[388393000,1759151457584,-151.0,0.00025941,7]
[388393001,1759151457594,-151.0,0.00025941,7]
[388393002,1759151457604,-181.550027,0.00025941,7]
[388393003,1759151457614,-181.550027,0.00025941,7]
[388393004,1759151457623,-181.550027,0.00025941,7]
[388393005,1759151457633,-181.550027,0.00025941,7]
[388393006,1759151457644,-244.43081,0.00025941,7]
[388393007,1759151457654,-151.0,0.00025941,7]
[388393008,1759151457664,-151.0,0.00025941,7]
[388393009,1759151457675,-151.0,0.00025941,7]
[388393010,1759151457686,-151.0,0.00025941,7]
[388393011,1759151457697,-536.89,0.00025941,2]
[388393012,1759151457707,-171.374507,0.00025941,7]
[388393013,1759151457718,-176.81398,0.00025941,7]
[388393014,1759151457728,-176.81398,0.00025941,7]
[388393015,1759151457738,-176.81398,0.00025941,7]
[388393016,1759151457748,-176.81398,0.00025941,7]
[388393017,1759151457758,-6978.62,0.00025941,2]
[388393018,1759151457769,-151.0,0.00025941,7]
[388393019,1759151457781,-267.626462,0.00025941,7]
[388393020,1759151457791,-267.626462,0.00025941,7]
[388393021,1759151457802,-267.626462,0.00025941,7]
[388393022,1759151457812,-267.626462,0.00025941,7]
[388393023,1759151457822,-188.044588,0.00025941,7]
[388393024,1759151457832,-188.044588,0.00025941,7]
[388393025,1759151457842,-188.044588,0.00025941,7]
[388393026,1759151457852,-1944.22,0.00025941,2]
[388393027,1759151457862,-188.044588,0.00025941,7]
[388393028,1759151457873,-172.02884964,0.00025942,2]
[388393029,1759151457883,-480.0,0.00025942,2]
[388393030,1759151457893,-548.78,0.00025942,2]
[388393031,1759151457903,-728.75,0.00025942,2]
[388393032,1759151457913,-480.0,0.00025942,2]
[388393033,1759151457924,-151.0,0.00025942,7]
[388393034,1759151457934,-151.0,0.00025942,7]
[388393035,1759151457944,-151.0,0.00025942,7]
[388393036,1759151457954,-151.0,0.00025942,7]
[388393037,1759151457964,-151.0,0.00025942,7]
[388393038,1759151457975,-151.0,0.00025942,7]
[388393039,1759151457985,-151.0,0.00025942,7]
[388393040,1759151457995,-151.0,0.00025942,7]
[388393041,1759151458005,-151.926774,0.00025942,7]
[388393042,1759151458015,-151.0,0.00025942,7]
[388393043,1759151458027,-159.711407,0.00025942,7]
[388393044,1759151458037,-151.0,0.00025942,7]
[388393045,1759151458047,-151.0,0.00025942,7]
[388393046,1759151458057,-151.0,0.00025942,7]
[388393047,1759151458068,-151.0,0.00025942,7]
[388393048,1759151458079,-151.0,0.00025942,7]
[388393049,1759151458088,-151.0,0.00025942,7]
[388393050,1759151458098,-2497.25,0.00025942,2]
[388393051,1759151458109,-1769.7,0.00025942,2]
[388393052,1759151458118,-480.0,0.00025942,2]
[388393053,1759151458129,-1471.98,0.00025942,2]
[388393054,1759151458142,-500.0,0.00025942,2]
[388393055,1759151458152,-289.77301404,0.00025942,2]
[388393056,1759151458162,-480.0,0.00025942,2]
[388393057,1759151458174,-281.49616388,0.00025942,2]
[388393058,1759151458184,-489.83,0.00025942,2]
[388393059,1759151458194,-151.0,0.00025942,7]
[388393060,1759151458207,-583.9,0.00025942,2]
[388393061,1759151458216,-154.486414,0.00025942,7]
[388393062,1759151458226,-151.0,0.00025942,7]
[388393063,1759151458236,-585.35,0.00025942,2]
[388393064,1759151458246,-151.0,0.00025942,7]
[388393065,1759151458256,-151.0,0.00025942,7]
[388393066,1759151458266,-151.0,0.00025942,7]
[388393067,1759151458276,-151.0,0.00025942,7]
[388393068,1759151458286,-279.456317,0.00025942,7]
[388393069,1759151458296,-480.0,0.00025942,2]
[388393070,1759151458306,-3052.12,0.00025942,2]
[388393071,1759151458316,-1319.29,0.00025942,2]
[388393072,1759151458326,-181.550027,0.00025942,7]
[388393073,1759151458337,-181.550027,0.00025942,7]
[388393074,1759151458347,-480.0,0.00025942,2]
[388393075,1759151458357,-181.550027,0.00025942,7]
[388393076,1759151458367,-562.293179,0.00025942,7]
[388393077,1759151458377,-973.47,0.00025942,2]
[388393078,1759151458387,-562.293179,0.00025942,7]
[388393079,1759151458397,-181.550027,0.00025942,7]
[388393080,1759151458407,-562.293179,0.00025942,7]
[388393081,1759151458417,-562.293179,0.00025942,7]
[388393082,1759151458427,-480.0,0.00025942,2]
[388393083,1759151458437,-1053.45,0.00025942,2]
[388393084,1759151458448,-480.0,0.00025942,2]
[388393085,1759151458458,-567.77,0.00025942,2]
[388393086,1759151458467,-153.514574,0.00025942,7]
[388393087,1759151458477,-547.25,0.00025942,2]
[388393088,1759151458489,-151.0,0.00025942,7]
[388393089,1759151458499,-151.0,0.00025942,7]
[388393090,1759151458509,-151.0,0.00025942,7]
[388393091,1759151458519,-151.0,0.00025942,7]
[388393092,1759151458529,-151.0,0.00025942,7]
[388393093,1759151458538,-151.0,0.00025942,7]
[388393094,1759151458549,-933.94,0.00025942,2]
[388393095,1759151458559,-151.0,0.00025942,7]
[388393096,1759151458569,-151.0,0.00025942,7]
[388393097,1759151458579,-151.0,0.00025942,7]
[388393098,1759151458589,-566.52,0.00025942,2]
[388393099,1759151458598,-151.0,0.00025942,7]
[388393100,1759151458608,-953.78,0.00025942,2]
[388393101,1759151458618,-151.0,0.00025942,7]
[388393102,1759151458628,-153.655663,0.00025942,7]
[388393103,1759151458638,-189.40172226,0.00025942,7]
[388393104,1759151458648,-159.004346,0.00025942,7]
[388393105,1759151458658,-480.0,0.00025942,2]
[388393106,1759151458668,-159.004346,0.00025942,7]
[388393107,1759151458678,-2846.66,0.00025942,2]
[388393108,1759151458688,-159.004346,0.00025942,7]
[388393109,1759151458698,-159.004346,0.00025942,7]
[388393110,1759151458708,-151.0,0.00025942,7]
[388393111,1759151458718,-151.0,0.00025942,7]
[388393112,1759151458727,-159.004346,0.00025942,7]
[388393113,1759151458737,-159.004346,0.00025942,7]
[388393114,1759151458747,-153.52264,0.00025942,7]
[388393115,1759151458757,-151.0,0.00025942,7]
[388393116,1759151458766,-159.004346,0.00025942,7]
[388393117,1759151458776,-151.0,0.00025942,7]
[388393118,1759151458786,-159.004339,0.00025942,7]
[388393119,1759151458796,-151.0,0.00025942,7]
[388393120,1759151458806,-151.0,0.00025942,7]
[388393121,1759151458816,-151.0,0.00025942,7]
[388393122,1759151458826,-151.0,0.00025942,7]
[388393123,1759151458836,-189.862779,0.00025942,7]
[388393124,1759151458846,-887.91,0.00025942,2]
[388393125,1759151458856,-480.0,0.00025942,2]
[388393126,1759151458867,-543.41,0.00025942,2]
[388393127,1759151458878,-151.0,0.00025942,7]
[388393128,1759151458888,-151.0,0.00025942,7]
[388393129,1759151458899,-151.0,0.00025942,7]
[388393130,1759151458910,-151.0,0.00025942,7]
[388393131,1759151458920,-151.0,0.00025942,7]
[388393132,1759151458930,-151.0,0.00025942,7]
[388393133,1759151458941,-709.345783,0.00025942,7]
[388393134,1759151458951,-709.345783,0.00025942,7]
[388393135,1759151458961,-864.4,0.00025942,2]
[388393136,1759151458972,-574.427386,0.00025942,7]
[388393137,1759151458982,-574.427386,0.00025942,7]
[388393138,1759151458993,-919.55,0.00025942,2]
[388393139,1759151459003,-709.345783,0.00025942,7]
[388393140,1759151459013,-709.345783,0.00025942,7]
[388393141,1759151459023,-574.427386,0.00025942,7]
[388393142,1759151459033,-574.427386,0.00025942,7]
[388393143,1759151459043,-709.345783,0.00025942,7]
[388393144,1759151459053,-709.345783,0.00025942,7]
[388393145,1759151459063,-574.427386,0.00025942,7]
[388393146,1759151459074,-574.427386,0.00025942,7]
[388393147,1759151459083,-709.345783,0.00025942,7]
[388393148,1759151459093,-709.345782,0.00025942,7]
[388393149,1759151459104,-574.427386,0.00025942,7]
[388393150,1759151459114,-574.42738,0.00025942,7]
[388393151,1759151459124,-785.53,0.00025942,2]
[388393152,1759151459139,-779.05,0.00025942,2]
[388393153,1759151459149,-954.8,0.00025942,2]
[388393154,1759151459159,-480.0,0.00025942,2]
[388393155,1759151459169,-151.0,0.00025942,7]
[388393156,1759151459179,-151.0,0.00025942,7]
[388393157,1759151459189,-151.0,0.00025942,7]
[388393158,1759151459199,-842.78,0.00025942,2]
[388393159,1759151459209,-151.0,0.00025942,7]
[388393160,1759151459221,-1580.36,0.00025942,2]
[388393161,1759151459230,-858.158994,0.00025942,7]
[388393162,1759151459240,-151.0,0.00025942,7]
[388393163,1759151459250,-858.158994,0.00025942,7]
[388393164,1759151459261,-276.76925,0.00025942,7]
[388393165,1759151459271,-151.0,0.00025942,7]
[388393166,1759151459281,-246.467037,0.00025942,7]
[388393167,1759151459290,-858.158994,0.00025942,7]
[388393168,1759151459300,-151.0,0.00025942,7]
[388393169,1759151459309,-858.158994,0.00025942,7]
[388393170,1759151459319,-246.467037,0.00025942,7]
[388393171,1759151459328,-548.921359,0.00025942,7]
[388393172,1759151459338,-151.0,0.00025942,7]
[388393173,1759151459348,-246.467037,0.00025942,7]
[388393174,1759151459358,-548.921359,0.00025942,7]
[388393175,1759151459367,-246.467037,0.00025942,7]
[388393176,1759151459376,-151.0,0.00025942,7]
[388393177,1759151459386,-548.921359,0.00025942,7]
[388393178,1759151459396,-151.0,0.00025942,7]
[388393179,1759151459406,-530.15,0.00025942,2]
[388393180,1759151459415,-548.921359,0.00025942,7]
[388393181,1759151459426,-241.103817,0.00025942,7]
[388393182,1759151459436,-228.176551,0.00025942,7]
[388393183,1759151459445,-228.176551,0.00025942,7]
[388393184,1759151459455,-228.176551,0.00025942,7]
[388393185,1759151459465,-228.176551,0.00025942,7]
[388393186,1759151459474,-480.0,0.00025942,2]
[388393187,1759151459484,-480.0,0.00025942,2]
[388393188,1759151459494,-151.0,0.00025942,7]
[388393189,1759151459504,-151.0,0.00025942,7]
[388393190,1759151459514,-837.91,0.00025942,2]
[388393191,1759151459524,-2983.24,0.00025942,2]
[388393192,1759151459533,-164.368267,0.00025942,7]
[388393193,1759151459543,-164.368267,0.00025942,7]
[388393194,1759151459553,-164.368267,0.00025942,7]
[388393195,1759151459563,-164.368267,0.00025942,7]
[388393196,1759151459573,-860.7,0.00025942,2]
[388393197,1759151459583,-151.0,0.00025942,7]
[388393198,1759151459593,-861.27,0.00025942,2]
[388393199,1759151459760,-505.9,0.00025942,2]
[388393200,1759151459770,-151.0,0.00025942,7]
[388393201,1759151459781,-151.0,0.00025942,7]
[388393202,1759151459790,-190.270497,0.00025942,7]
[388393203,1759151459800,-480.0,0.00025942,2]
[388393204,1759151459810,-480.0,0.00025942,2]
[388393205,1759151459819,-765.58,0.00025942,2]
[388393206,1759151459829,-176.81398,0.00025942,7]
[388393207,1759151459839,-1104.12,0.00025942,2]
[388393208,1759151459849,-176.81398,0.00025942,7]
[388393209,1759151459859,-176.81398,0.00025942,7]
[388393210,1759151459869,-176.813981,0.00025942,7]
[388393211,1759151459879,-2740.82,0.00025942,2]
[388393212,1759151459889,-153.891967,0.00025942,7]
[388393213,1759151459898,-267.626462,0.00025942,7]
[388393214,1759151459908,-267.626462,0.00025942,7]
[388393215,1759151459918,-267.626462,0.00025942,7]
[388393216,1759151459928,-267.626465,0.00025942,7]
[388393217,1759151459938,-188.044588,0.00025942,7]
[388393218,1759151459948,-188.044588,0.00025942,7]
[388393219,1759151459958,-188.044588,0.00025942,7]
[388393220,1759151459968,-188.04458185,0.00025942,7]
[388393221,1759151459977,-668.18,0.00025942,2]
[388393222,1759151459986,-480.0,0.00025942,2]
[388393223,1759151459996,-733.36,0.00025942,2]
[388393224,1759151460006,-480.0,0.00025942,2]
[388393225,1759151460016,-480.0,0.00025943,2]
[388393226,1759151460027,-480.0,0.00025943,2]
[388393227,1759151460037,-480.0,0.00025943,2]
[388393228,1759151460046,-480.0,0.00025943,2]
[388393229,1759151460056,-480.0,0.00025943,2]
[388393230,1759151460065,-480.0,0.00025943,2]
[388393231,1759151460075,-480.0,0.00025943,2]
[388393232,1759151460085,-480.0,0.00025943,2]
[388393233,1759151460095,-769.14,0.00025943,2]
[388393234,1759151460106,-480.0,0.00025943,2]
[388393235,1759151460115,-480.0,0.00025943,2]
[388393236,1759151460126,-480.0,0.00025943,2]
[388393237,1759151460139,-151.0,0.00025943,7]
[388393238,1759151460150,-151.0,0.00025943,7]
[388393239,1759151460160,-658.11,0.00025943,2]
[388393240,1759151460171,-151.0,0.00025943,7]
[388393241,1759151460181,-480.0,0.00025943,2]
[388393242,1759151460191,-480.0,0.00025943,2]
[388393243,1759151460201,-499.59,0.00025943,2]
[388393244,1759151460214,-480.0,0.00025943,2]
[388393245,1759151460224,-778.35,0.00025943,2]
[388393246,1759151460234,-480.0,0.00025943,2]
[388393247,1759151460244,-480.0,0.00025943,2]
[388393248,1759151460254,-480.0,0.00025943,2]
[388393249,1759151460264,-480.0,0.00025943,2]
[388393250,1759151460273,-480.0,0.00025943,2]
[388393251,1759151460283,-667.38,0.00025943,2]
[388393252,1759151460293,-1057.84,0.00025943,2]
[388393253,1759151460303,-151.0,0.00025943,7]
[388393254,1759151460313,-480.0,0.00025943,2]
[388393255,1759151460323,-151.0,0.00025943,7]
[388393256,1759151460333,-505.54,0.00025943,2]
[388393257,1759151460343,-480.0,0.00025943,2]
[388393258,1759151460352,-480.0,0.00025943,2]
[388393259,1759151460362,-151.0,0.00025943,7]
[388393260,1759151460372,-480.0,0.00025943,2]
[388393261,1759151460382,-480.0,0.00025943,2]
[388393262,1759151460392,-737.36,0.00025943,2]
[388393263,1759151460402,-1967.29,0.00025943,2]
[388393264,1759151460411,-151.0,0.00025943,7]
[388393265,1759151460421,-151.0,0.00025943,7]
[388393266,1759151460431,-480.0,0.00025943,2]
[388393267,1759151460441,-570.77,0.00025943,2]
[388393268,1759151460451,-753.46,0.00025943,2]
[388393269,1759151460462,-480.0,0.00025943,2]
[388393270,1759151460472,-603.75,0.00025943,2]
[388393271,1759151460482,-480.0,0.00025943,2]
[388393272,1759151460492,-480.0,0.00025943,2]
[388393273,1759151460502,-151.0,0.00025943,7]
[388393274,1759151460512,-151.0,0.00025943,7]
[388393275,1759151460522,-772.28,0.00025943,2]
[388393276,1759151460533,-626.0,0.00025943,2]
[388393277,1759151460543,-480.0,0.00025943,2]
[388393278,1759151460553,-756.4,0.00025943,2]
[388393279,1759151460563,-811.45,0.00025943,2]
[388393280,1759151460573,-480.0,0.00025943,2]
[388393281,1759151460583,-480.0,0.00025943,2]
[388393282,1759151460593,-480.0,0.00025943,2]
[388393283,1759151460603,-575.52,0.00025943,2]
[388393284,1759151460613,-339.50029271,0.00025943,2]
[388393285,1759151460624,-480.0,0.00025943,2]
[388393286,1759151460635,-480.0,0.00025943,2]
[388393287,1759151460645,-480.0,0.00025943,2]
[388393288,1759151460655,-879.25,0.00025943,2]
[388393289,1759151460665,-480.0,0.00025943,2]
[388393290,1759151460674,-480.0,0.00025943,2]
[388393291,1759151460684,-480.0,0.00025943,2]
[388393292,1759151460695,-480.0,0.00025943,2]
[388393293,1759151460706,-758.55,0.00025943,2]
[388393294,1759151460715,-480.0,0.00025943,2]
[388393295,1759151460725,-480.0,0.00025943,2]
[388393296,1759151460735,-480.0,0.00025943,2]
[388393297,1759151460746,-480.0,0.00025943,2]
[388393298,1759151460756,-480.0,0.00025943,2]
[388393299,1759151460765,-387.84086418,0.00025943,2]
[388393300,1759151460775,-480.0,0.00025943,2]
[388393301,1759151460786,-16846.0522938,0.00025943,2]
[388393302,1759151460796,-480.0,0.00025943,2]
[388393303,1759151460806,-480.0,0.00025943,2]
[388393304,1759151460816,-480.0,0.00025943,2]
[388393305,1759151460826,-480.0,0.00025943,2]
[388393306,1759151460836,-1965.84,0.00025943,2]
[388393307,1759151460846,-480.0,0.00025943,2]
[388393308,1759151460855,-480.0,0.00025943,2]
[388393309,1759151460865,-652.08,0.00025943,2]
[388393310,1759151460875,-219.5273721,0.00025943,2]
[388393311,1759151460885,-480.0,0.00025943,2]
[388393312,1759151460895,-480.0,0.00025943,2]
[388393313,1759151460905,-480.0,0.00025943,2]
[388393314,1759151460915,-1365.0,0.00025943,2]
[388393315,1759151460924,-875.46,0.00025943,2]
[388393316,1759151460934,-692.05,0.00025943,2]
[388393317,1759151460944,-151.0,0.00025943,7]
[388393318,1759151460954,-480.0,0.00025943,2]
[388393319,1759151460964,-1761.05,0.00025943,2]
[388393320,1759151460974,-151.0,0.00025943,7]
[388393321,1759151460984,-480.0,0.00025943,2]
[388393322,1759151460993,-151.0,0.00025943,7]
[388393323,1759151461003,-762.84,0.00025943,2]
[388393324,1759151461012,-151.0,0.00025943,7]
[388393325,1759151461022,-480.0,0.00025943,2]
[388393326,1759151461032,-151.0,0.00025943,7]
[388393327,1759151461042,-480.0,0.00025943,2]
[388393328,1759151461051,-151.0,0.00025943,7]
[388393329,1759151461062,-480.0,0.00025943,2]
[388393330,1759151461072,-480.0,0.00025943,2]
[388393331,1759151461083,-480.0,0.00025943,2]
[388393332,1759151461100,-480.0,0.00025943,2]
[388393333,1759151461110,-621.28,0.00025943,2]
[388393334,1759151461120,-480.0,0.00025943,2]
[388393335,1759151461133,-480.0,0.00025943,2]
[388393336,1759151461144,-181.550027,0.00025943,7]
[388393337,1759151461155,-480.0,0.00025943,2]
[388393338,1759151461164,-181.550027,0.00025943,7]
[388393339,1759151461175,-181.550027,0.00025943,7]
[388393340,1759151461185,-480.0,0.00025943,2]
[388393341,1759151461194,-562.293179,0.00025943,7]
[388393342,1759151461206,-562.293179,0.00025943,7]
[388393343,1759151461217,-181.550027,0.00025943,7]
[388393344,1759151461226,-696.64,0.00025943,2]
[388393345,1759151461237,-562.293179,0.00025943,7]
[388393346,1759151461247,-634.37,0.00025943,2]
[388393347,1759151461256,-562.293179,0.00025943,7]
[388393348,1759151461267,-480.0,0.00025943,2]
[388393349,1759151461277,-480.0,0.00025943,2]
[388393350,1759151461288,-480.0,0.00025943,2]
[388393351,1759151461297,-480.0,0.00025943,2]
[388393352,1759151461307,-514.10939813,0.00025943,2]
[388393353,1759151461316,-863.6,0.00025943,2]
[388393354,1759151461325,-480.0,0.00025943,2]
[388393355,1759151461334,-480.0,0.00025943,2]
[388393356,1759151461343,-858.58,0.00025943,2]
[388393357,1759151461355,-480.0,0.00025943,2]
[388393358,1759151461365,-678.21,0.00025943,2]
[388393359,1759151461375,-151.0,0.00025943,7]
[388393360,1759151461385,-480.0,0.00025943,2]
[388393361,1759151461394,-709.45,0.00025943,2]
[388393362,1759151461404,-480.0,0.00025943,2]
[388393363,1759151461414,-151.0,0.00025943,7]
[388393364,1759151461425,-480.0,0.00025943,2]
[388393365,1759151461435,-1000.0,0.00025943,2]
[388393366,1759151461444,-488.30215019,0.00025943,2]
[388393367,1759151461454,-480.0,0.00025943,2]
[388393368,1759151461463,-480.0,0.00025943,2]
[388393369,1759151461473,-480.0,0.00025943,2]
[388393370,1759151461483,-480.63216321,0.00025943,2]
[388393371,1759151461493,-480.0,0.00025943,2]
[388393372,1759151461502,-480.0,0.00025943,2]
[388393373,1759151461512,-480.0,0.00025943,2]
[388393374,1759151461522,-480.0,0.00025943,2]
[388393375,1759151461534,-480.0,0.00025943,2]
[388393376,1759151461544,-480.0,0.00025943,2]
[388393377,1759151461553,-480.0,0.00025943,2]
[388393378,1759151461563,-480.0,0.00025943,2]
[388393379,1759151461573,-705.06,0.00025943,2]
[388393380,1759151461583,-151.0,0.00025943,7]
[388393381,1759151461591,-151.0,0.00025943,7]
[388393382,1759151461600,-281.341482,0.00025943,7]
[388393383,1759151461610,-151.0,0.00025943,7]
[388393384,1759151461620,-858.158994,0.00025943,7]
[388393385,1759151461631,-151.0,0.00025943,7]
[388393386,1759151461641,-858.158994,0.00025943,7]
[388393387,1759151461651,-481.51,0.00025943,2]
[388393388,1759151461660,-151.0,0.00025943,7]